bitfinex/quotes_ETHUSD_20251107
["timestamp","ask_amount","ask_price","bid_price","bid_amount"]
[1762510189984,2.18106142,3305.6,3305.5,30.0093]
[1762510190169,1.82461292,3305.6,3305.5,30.4961]
[1762510190374,2.18106142,3305.6,3305.5,30.4961]
[1762510190587,1.82461292,3305.6,3305.5,31.7261]
[1762510191155,2.18106142,3305.6,3305.5,31.7261]
[1762510191357,5.20623082,3305.6,3305.5,30.75]
[1762510191883,4.84978232,3305.6,3305.5,30.75]
[1762510192089,4.84978232,3305.6,3305.5,31.98]
[1762510192256,5.72614493,3305.6,3305.5,31.98]
[1762510192975,6.10206729,3305.6,3305.5,31.98]
[1762510193488,6.10206729,3305.6,3305.5,33.21]
[1762510193992,5.72614493,3305.6,3305.5,33.21]
[1762510194353,4.84978232,3305.6,3305.5,33.6688]
[1762510194569,1.41910892,3305.6,3305.5,34.1556]
[1762510194789,1.82461292,3305.6,3305.5,35.3856]
[1762510195290,1.41910892,3305.6,3305.5,35.3856]
[1762510195478,0.15939692,3305.6,3305.5,36.08622562]
[1762510195789,0.15939692,3305.6,3305.5,35.59942562]
[1762510195971,0.15939692,3305.6,3305.5,35.3856]
[1762510196171,0.15939692,3305.6,3305.5,36.6156]
[1762510196493,0.56490092,3305.6,3305.5,36.1288]
[1762510197098,0.55601208,3305.6,3305.5,36.1288]
[1762510197482,0.96151608,3305.6,3305.5,36.1288]
[1762510197694,0.56490092,3305.6,3305.5,37.8456]
[1762510198973,0.56410092,3305.6,3305.5,39.0756]
[1762510199609,1.82381292,3305.6,3305.5,39.0756]
[1762510199775,1.82381292,3305.6,3305.5,38.5888]
[1762510200108,3.58927032,3305.6,3305.5,38.5888]
[1762510200299,4.06901777,3305.6,3305.5,40.3056]
[1762510200501,4.43511675,3305.6,3305.5,40.3056]
[1762510200701,4.02961275,3305.6,3305.5,40.3056]
[1762510201697,4.43511675,3305.6,3305.5,41.5356]
[1762510202418,3.69224319,3305.6,3305.5,41.0488]
[1762510202924,0.76884302,3305.6,3305.5,40.591]
[1762510203237,1.31510069,3305.6,3305.5,42.7656]
[1762510203510,0.002,3306.0,3305.5,45.79484738]
[1762510203814,0.002,3306.0,3305.9,0.4578]
[1762510204112,0.1512,3305.9,3305.5,42.3078]
[1762510204312,0.1512,3305.9,3305.5,41.821]
[1762510204313,0.1512,3305.6,3305.5,41.821]
[1762510204618,0.1512,3305.6,3305.5,43.051]
[1762510204819,0.1512,3305.6,3305.5,43.5088]
[1762510204978,0.1512,3305.6,3305.5,43.9956]
[1762510205593,0.1512,3305.6,3305.5,45.08264986]
[1762510205994,0.51729898,3305.6,3305.5,46.31264986]
[1762510207107,0.1512,3305.6,3305.5,46.31264986]
[1762510207284,0.1512,3305.6,3305.5,47.54264986]
[1762510207685,0.1512,3305.6,3305.5,45.9688]
[1762510207880,0.556704,3305.6,3305.5,45.9688]
[1762510208080,5.68743183,3305.6,3305.5,45.511]
[1762510208320,6.96036754,3305.6,3305.5,45.511]
[1762510208620,6.96036754,3305.6,3305.5,46.741]
[1762510208919,6.96036754,3305.6,3305.5,42.10914655]
[1762510209124,13.45036754,3305.6,3305.5,42.10914655]
[1762510209617,13.45036754,3305.6,3305.5,41.5747032]
[1762510209998,13.45036754,3305.6,3305.5,38.17284975]
[1762510210985,13.45036754,3305.6,3305.5,33.5409963]
[1762510211399,13.45036754,3305.6,3305.5,34.76349369]
[1762510211600,13.45236754,3305.6,3305.5,34.76349369]
[1762510211795,12.60652111,3305.6,3305.5,34.76349369]
[1762510212051,12.97262009,3305.6,3305.5,34.76349369]
[1762510212239,13.40783059,3305.6,3305.5,34.76349369]
[1762510212850,13.40783059,3305.6,3305.5,35.99349369]
[1762510214011,13.40783059,3305.6,3305.5,37.22349369]
[1762510215339,13.40783059,3305.6,3305.5,38.45349369]
[1762510215854,13.40783059,3305.6,3305.5,10.62731886]
[1762510216152,13.40783059,3305.6,3304.8,0.001]
[1762510216153,3.43131416,3304.9,3304.8,0.001]
[1762510216357,3.48168042,3304.5,3304.4,0.001]
[1762510216536,4.74139242,3304.5,3304.4,0.001]
[1762510216848,6.46410538,3304.5,3304.4,0.001]
[1762510217039,6.02889488,3304.5,3304.4,0.001]
[1762510217238,3.00271846,3304.5,3304.4,0.4749]
[1762510217425,2.57532319,3304.5,3304.4,2.552]
[1762510217854,2.57532319,3304.5,3304.4,3.782]
[1762510219240,3.05016174,3304.5,3304.4,5.012]
[1762510219438,6.07633816,3304.5,3304.4,2.461]
[1762510219962,6.45369127,3304.5,3304.4,2.9349]
[1762510220265,6.07633816,3304.5,3304.4,2.9349]
[1762510220452,6.45369127,3304.5,3304.4,2.9349]
[1762510220650,3.42751485,3304.5,3304.4,4.6428]
[1762510220960,3.05016174,3304.5,3304.4,4.6428]
[1762510221837,6.45289127,3304.5,3304.4,3.691]
[1762510222037,6.88810177,3304.5,3304.4,4.921]
[1762510222242,6.45289127,3304.5,3304.4,4.921]
[1762510223044,6.88810177,3304.5,3304.4,4.921]
[1762510223432,3.86192535,3304.5,3304.4,7.1028]
[1762510223637,6.07553816,3304.5,3304.4,7.1028]
[1762510223833,5.60069961,3304.5,3304.4,6.6249]
[1762510224947,2.57452319,3304.5,3304.4,7.8549]
[1762510225144,2.57452319,3304.5,3304.4,8.3328]
[1762510225347,5.60069961,3304.5,3304.4,8.3328]
[1762510226159,2.57452319,3304.5,3304.4,8.3328]
[1762510226357,2.57452319,3304.5,3304.4,9.5628]
[1762510226756,5.60069961,3304.5,3304.4,9.5628]
[1762510227079,5.60069961,3304.5,3304.4,9.0849]
[1762510227282,5.60069961,3304.5,3304.4,8.611]
[1762510227582,5.97805272,3304.5,3304.4,8.611]
[1762510227880,5.97805272,3304.5,3304.4,9.841]
[1762510228246,6.41526322,3304.5,3304.4,9.841]
[1762510229069,6.41526322,3304.5,3304.4,11.071]
[1762510230154,6.01055922,3304.5,3304.4,11.071]
[1762510230484,6.41606322,3304.5,3304.4,11.071]
[1762510230689,6.41606322,3304.5,3304.4,12.28803332]
[1762510230885,6.41606322,3304.5,3304.4,11.78622481]
[1762510231087,5.98085272,3304.5,3304.4,11.78622481]
[1762510231278,6.41606322,3304.5,3304.4,11.78622481]
[1762510231988,6.41606322,3304.5,3304.4,13.49012481]
[1762510231989,6.01453534,3304.5,3304.4,13.49012481]
[1762510232191,5.60349961,3304.5,3304.4,13.96802481]
[1762510233303,6.01453534,3304.5,3304.4,14.24622481]
[1762510233672,5.60903134,3304.5,3304.4,14.24622481]
[1762510234601,5.60349961,3304.5,3304.4,15.95012481]
[1762510235002,6.01453534,3304.5,3304.4,15.95012481]
[1762510235180,5.60349961,3304.5,3304.4,15.95012481]
[1762510235385,6.01453534,3304.5,3304.4,15.95012481]
[1762510235619,6.01453534,3304.5,3304.4,15.47622481]
[1762510235801,6.44974584,3304.5,3304.4,15.47622481]
[1762510236006,6.44974584,3304.5,3304.4,16.70622481]
[1762510237325,6.44974584,3304.5,3304.4,17.93622481]
[1762510238424,6.924626,3304.5,3304.4,17.93622481]
[1762510238629,6.924626,3304.5,3304.4,19.16622481]
[1762510240331,6.924626,3304.5,3304.4,20.39622481]
[1762510240898,6.44974584,3304.5,3304.4,20.39622481]
[1762510241726,6.44974584,3304.5,3304.4,21.62622481]
[1762510243150,6.44974584,3304.5,3304.4,22.85622481]
[1762510243937,6.07838415,3304.5,3304.4,22.85622481]
[1762510244242,6.07838415,3304.5,3304.4,23.31222481]
[1762510244448,6.07838415,3304.5,3304.4,24.99862481]
[1762510244741,6.07758415,3304.5,3304.4,24.99862481]
[1762510244948,6.08311588,3304.5,3304.4,24.99862481]
[1762510245240,6.08311588,3304.5,3304.4,24.99962481]
[1762510245241,6.48861988,3304.5,3304.4,24.99962481]
[1762510245443,6.07758415,3304.5,3304.4,24.99962481]
[1762510245628,6.48861988,3304.5,3304.4,24.54322481]
[1762510245866,6.48861988,3304.5,3304.4,25.31722481]
[1762510246831,6.92383038,3304.5,3304.4,25.31722481]
[1762510247220,6.48861988,3304.5,3304.4,25.31722481]
[1762510247414,6.92383038,3304.5,3304.4,26.54722481]
[1762510247947,6.07758415,3304.5,3304.4,27.01522481]
[1762510248153,6.07758415,3304.5,3304.4,27.47162481]
[1762510248448,6.45699821,3304.5,3304.4,27.01522481]
[1762510248814,6.45699821,3304.5,3304.4,28.24522481]
[1762510249154,6.89220871,3304.5,3304.4,28.24522481]
[1762510249738,6.45699821,3304.5,3304.4,28.24522481]
[1762510249939,6.89220871,3304.5,3304.4,27.77722481]
[1762510250145,6.45699821,3304.5,3304.4,29.47522481]
[1762510250350,6.45699821,3304.5,3304.4,29.93162481]
[1762510250572,6.89220871,3304.5,3304.4,29.93162481]
[1762510250876,6.89220871,3304.5,3304.4,29.00722481]
[1762510251445,6.89220871,3304.5,3304.4,30.23722481]
[1762510251973,6.89220871,3304.5,3304.4,30.70522481]
[1762510252164,6.07758415,3304.5,3304.4,31.16162481]
[1762510252874,6.07758415,3304.5,3304.4,32.39162481]
[1762510254275,5.60269961,3304.5,3304.4,33.62162481]
[1762510254969,5.60269961,3304.5,3304.4,33.16522481]
[1762510255150,5.60269961,3304.5,3304.4,33.62162481]
[1762510255548,5.60269961,3304.5,3304.4,34.85162481]
[1762510256349,5.60269961,3304.5,3304.4,34.39522481]
[1762510256554,5.96081315,3304.5,3304.4,34.39522481]
[1762510257073,5.96081315,3304.5,3304.4,35.62522481]
[1762510257602,5.96081315,3304.5,3304.4,36.08162481]
[1762510257767,5.60269961,3304.5,3304.4,36.08162481]
[1762510258268,5.60269961,3304.5,3304.4,37.31162481]
[1762510258774,5.96081315,3304.5,3304.4,36.38722481]
[1762510259903,5.96081315,3304.5,3304.4,37.61722481]
[1762510260411,6.39602365,3304.5,3304.4,37.61722481]
[1762510260594,6.39602365,3304.5,3304.4,38.08522481]
[1762510260966,2.57652319,3304.5,3304.4,38.54162481]
[1762510261172,2.57652319,3304.5,3304.4,41.06829809]
[1762510261173,0.41210719,3304.5,3304.4,41.06829809]
[1762510261367,9.0,3304.8,3304.4,41.06829809]
[1762510261606,9.0,3304.8,3304.7,0.468]
[1762510262104,10.259712,3304.8,3304.7,0.9244]
[1762510262485,13.28561371,3304.8,3304.7,1.698]
[1762510262695,4.69111771,3304.8,3304.7,1.698]
[1762510263228,1.665216,3304.8,3304.7,2.1544]
[1762510263693,4.69111771,3304.8,3304.7,2.1544]
[1762510264022,5.08923125,3304.8,3304.7,2.928]
[1762510264799,2.06332954,3304.8,3304.7,3.3844]
[1762510265148,5.56404755,3304.8,3304.7,4.158]
[1762510265740,5.15854355,3304.8,3304.7,4.158]
[1762510267050,5.56404755,3304.8,3304.7,5.388]
[1762510267255,5.56404755,3304.8,3304.7,4.92]
[1762510267256,6.79585805,3304.8,3304.7,4.92]
[1762510267460,7.11648041,3304.8,3304.7,1.44610991]
[1762510267612,8.02648822,3304.8,3304.7,1.44610991]
[1762510268480,3.43168042,3304.5,3304.4,38.84722481]
[1762510268634,4.26500446,3304.5,3304.4,38.84722481]
[1762510268811,4.55740446,3304.5,3304.4,38.84722481]
[1762510269146,4.15190046,3304.5,3304.4,38.84722481]
[1762510269320,5.81711646,3304.5,3304.4,38.84722481]
[1762510269525,5.81711646,3304.5,3304.4,35.37333472]
[1762510269737,6.26931646,3304.5,3304.4,36.60333472]
[1762510270559,6.26931646,3304.5,3304.4,33.12944463]
[1762510270762,4.741484,3304.4,3304.1,0.03418864]
[1762510270963,4.741484,3304.4,3303.8,1.23]
[1762510270964,4.74185038,3304.0,3303.8,1.23]
[1762510271267,3.4828714,3303.2,3302.7,0.4564]
[1762510271420,5.1766893,3303.2,3302.7,0.4564]
[1762510271622,5.1766893,3303.2,3303.1,5.393]
[1762510271822,5.6253893,3303.2,3303.1,4.925]
[1762510272037,6.5143998,3303.2,3303.1,4.925]
[1762510272289,7.42486882,3303.2,3303.1,4.925]
[1762510272690,16.42486882,3303.2,3303.1,4.925]
[1762510273198,16.42486882,3303.2,3303.1,1.45110991]
[1762510273361,16.74870784,3303.2,3303.1,1.45110991]
[1762510273559,3.48360477,3302.4,3302.3,1.23]
[1762510273869,6.05988251,3302.4,3302.3,0.75131933]
[1762510274069,5.52258415,3302.3,3302.1,0.005]
[1762510274272,5.09187365,3302.3,3302.1,0.005]
[1762510274474,3.43369647,3302.3,3302.2,6.6343]
[1762510275188,5.11910847,3302.3,3302.2,7.38]
[1762510275361,5.55431897,3302.3,3302.2,7.38]
[1762510275555,5.94828415,3302.3,3302.2,7.38]
[1762510276489,5.51307365,3302.3,3302.2,8.61]
[1762510277295,5.94828415,3302.3,3302.2,8.61]
[1762510277466,5.97147365,3302.3,3302.2,8.61]
[1762510277662,5.94828415,3302.3,3302.2,8.61]
[1762510277975,5.51307365,3302.3,3302.2,9.84]
[1762510278377,5.94828415,3302.3,3302.2,9.84]
[1762510278560,6.40668415,3302.3,3302.2,9.84]
[1762510278759,1.665216,3302.3,3302.2,10.3243]
[1762510278978,2.05918118,3302.3,3302.2,10.3243]
[1762510279173,2.05918118,3302.3,3302.2,11.5543]
[1762510279373,5.08737365,3302.3,3302.2,11.5543]
[1762510279693,2.05918118,3302.3,3302.2,11.07]
[1762510279873,5.94868415,3302.3,3302.2,11.07]
[1762510280476,5.94868415,3302.3,3302.2,12.3]
[1762510281403,5.51347365,3302.3,3302.2,12.3]
[1762510281697,6.85935493,3302.3,3302.2,12.3]
[1762510281904,6.85935493,3302.3,3302.2,13.53]
[1762510282097,7.31705493,3302.3,3302.2,13.53]
[1762510282308,6.88184443,3302.3,3302.2,13.53]
[1762510282469,6.42414443,3302.3,3302.2,13.53]
[1762510283304,6.42414443,3302.3,3302.2,14.76]
[1762510284715,6.42414443,3302.3,3302.2,15.99]
[1762510284917,2.96985196,3302.3,3302.2,16.4743]
[1762510285115,2.57588678,3302.3,3302.2,16.9681]
[1762510285315,1.259712,3302.3,3302.2,16.9681]
[1762510285513,1.259712,3302.3,3302.2,18.68515]
[1762510285718,1.665216,3302.3,3302.2,18.68515]
[1762510285901,1.259712,3302.3,3302.2,16.9681]
[1762510286098,1.259712,3302.3,3302.2,18.1981]
[1762510286304,1.665216,3302.3,3302.2,18.1981]
[1762510287497,1.665216,3302.3,3302.2,19.4281]
[1762510287699,2.05918118,3302.3,3302.2,19.4281]
[1762510289065,2.05918118,3302.3,3302.2,20.6581]
[1762510289757,1.65367718,3302.3,3302.2,22.74415]
[1762510289929,1.259712,3302.3,3302.2,22.74415]
[1762510290138,1.664416,3302.3,3302.2,22.74415]
[1762510290453,1.664416,3302.3,3302.2,23.97415]
[1762510290957,1.664416,3302.3,3302.2,21.8881]
[1762510291329,2.03313118,3302.3,3302.2,21.3943]
[1762510291525,5.52152365,3302.3,3302.2,20.91]
[1762510291855,6.36363415,3302.3,3302.2,22.14]
[1762510293219,6.36363415,3302.3,3302.2,23.37]
[1762510294122,6.68747317,3302.3,3302.2,23.37]
[1762510294562,6.68747317,3302.3,3302.2,24.6]
[1762510294902,6.68747317,3302.3,3302.2,24.15344635]
[1762510295242,6.68747317,3302.3,3301.8,0.001]
[1762510295243,0.455504,3301.9,3301.8,0.001]
[1762510295558,6.50177483,3301.9,3301.8,0.001]
[1762510295758,6.91971879,3301.9,3301.8,0.001]
[1762510295927,6.91971879,3301.9,3301.8,1.231]
[1762510296444,4.69386703,3301.8,3301.7,1.23]
[1762510296759,6.35027149,3301.8,3301.7,1.23]
[1762510296932,6.35027149,3301.8,3301.5,0.001]
[1762510296933,4.6940505,3301.6,3301.5,0.001]
[1762510297261,3.4847055,3301.2,3301.1,4.925]
[1762510297423,4.7444175,3301.2,3301.1,2.75414655]
[1762510297762,5.94195529,3301.2,3301.1,2.75414655]
[1762510298060,5.0577175,3301.2,3301.1,2.75414655]
[1762510298564,5.93269479,3301.2,3301.1,2.75414655]
[1762510298777,6.87459473,3301.2,3301.1,3.98414655]
[1762510298977,5.53315694,3301.2,3301.1,3.98414655]
[1762510299276,5.53315694,3301.2,3301.1,4.45574655]
[1762510299277,2.19065544,3301.2,3301.1,4.45574655]
[1762510299483,1.78515144,3301.2,3301.1,4.64804655]
[1762510299680,1.78515144,3301.2,3301.1,5.6097412]
[1762510299681,0.52543944,3301.2,3301.1,5.6097412]
[1762510300279,0.455504,3301.2,3301.1,6.8397412]
[1762510300783,0.455504,3301.2,3301.1,6.34724655]
[1762510300946,10.715216,3301.2,3301.1,5.68574655]
[1762510301284,5.2263175,3301.2,3301.1,5.21414655]
[1762510301494,1.791612,3301.2,3301.1,5.21414655]
[1762510301786,1.715216,3301.2,3301.1,6.44414655]
[1762510302280,2.13282663,3301.2,3301.1,6.44414655]
[1762510302484,2.13282663,3301.2,3301.1,6.91574655]
[1762510302485,2.59928713,3301.2,3301.1,6.91574655]
[1762510302683,1.715216,3301.2,3301.1,6.91574655]
[1762510303075,3.0437684,3301.2,3301.1,8.14574655]
[1762510303281,3.51914203,3301.2,3301.1,8.61494655]
[1762510303863,3.51914203,3301.2,3301.1,8.14574655]
[1762510304061,6.54834353,3301.2,3301.1,7.67414655]
[1762510304383,7.78540403,3301.2,3301.1,7.67414655]
[1762510304549,7.78540403,3301.2,3301.1,8.90414655]
[1762510305151,6.92750003,3301.2,3301.1,8.90414655]
[1762510305372,7.33300403,3301.2,3301.1,8.90414655]
[1762510305784,6.1307329,3301.2,3301.1,9.37284655]
[1762510305990,6.1307329,3301.2,3301.1,10.60284655]
[1762510306402,6.86794353,3301.2,3301.1,10.13414655]
[1762510306560,7.31894353,3301.2,3301.1,10.13414655]
[1762510307380,7.31894353,3301.2,3301.1,11.36414655]
[1762510308173,6.86794353,3301.2,3301.1,11.36414655]
[1762510308372,3.1015314,3301.2,3301.1,11.83284655]
[1762510308886,3.1015314,3301.2,3301.1,13.06284655]
[1762510308887,12.1015314,3301.2,3301.1,13.06284655]
[1762510309086,12.11363803,3301.2,3301.1,13.06284655]
[1762510309289,12.51914203,3301.2,3301.1,13.70304655]
[1762510309472,12.1015314,3301.2,3301.1,13.70304655]
[1762510309662,10.78508563,3301.2,3301.1,13.70304655]
[1762510309864,10.78508563,3301.2,3301.1,15.07335121]
[1762510310068,10.78508563,3301.2,3301.1,13.70304655]
[1762510310295,9.47537363,3301.2,3301.1,14.93304655]
[1762510310489,9.0,3301.2,3301.1,14.93304655]
[1762510310691,10.259712,3301.2,3301.1,14.93304655]
[1762510311002,9.0,3301.2,3301.1,14.93304655]
[1762510311202,9.0,3301.2,3301.1,16.42635121]
[1762510311367,10.259712,3301.2,3301.1,16.42635121]
[1762510311705,10.259712,3301.2,3301.1,17.65635121]
[1762510311999,0.91067354,3302.0,3301.1,17.65635121]
[1762510312218,0.91067354,3302.0,3301.9,0.4687]
[1762510312420,1.31617754,3302.0,3301.2,0.4507]
[1762510312696,0.556704,3301.2,3301.1,15.24364655]
[1762510312869,0.556704,3301.2,3301.1,15.05414655]
[1762510313065,0.555904,3301.2,3301.1,16.28414655]
[1762510313474,2.23322663,3301.2,3301.1,16.28414655]
[1762510313882,6.532317,3301.2,3301.1,16.28414655]
[1762510314671,6.067917,3301.2,3301.1,17.51414655]
[1762510314893,7.44329197,3301.2,3301.1,17.51414655]
[1762510316272,7.44329197,3301.2,3301.1,18.74514655]
[1762510316473,7.44529197,3301.2,3301.1,18.74514655]
[1762510317672,7.44529197,3301.2,3301.1,19.97514655]
[1762510319207,6.5454031,3301.2,3301.1,19.97514655]
[1762510319376,7.44529197,3301.2,3301.1,21.20514655]
[1762510319576,6.98089197,3301.2,3301.1,21.20514655]
[1762510319772,3.63169047,3301.2,3301.1,21.20514655]
[1762510319978,2.77859097,3301.2,3301.1,21.67384655]
[1762510320206,2.77859097,3301.2,3301.1,22.31404655]
[1762510321082,1.261712,3301.2,3301.1,23.54404655]
[1762510321270,1.667216,3301.2,3301.1,23.54404655]
[1762510322476,1.667216,3301.2,3301.1,24.77404655]
[1762510323721,1.717216,3301.2,3301.1,24.13384655]
[1762510324023,6.33067253,3301.2,3301.1,24.89514655]
[1762510324374,6.7661614,3301.2,3301.1,24.89514655]
[1762510325029,6.4461614,3301.2,3301.1,24.89514655]
[1762510325198,6.4461614,3301.2,3301.1,26.12514655]
[1762510326332,7.24306432,3301.2,3301.1,26.12514655]
[1762510326532,7.24306432,3301.2,3301.1,27.35514655]
[1762510326947,6.92156432,3301.2,3301.1,27.35514655]
[1762510327651,6.13272347,3301.2,3301.1,27.35514655]
[1762510327820,6.52657545,3301.2,3301.1,28.58514655]
[1762510328136,6.84807545,3301.2,3301.1,28.58514655]
[1762510328334,7.31107545,3301.2,3301.1,28.58514655]
[1762510328836,6.84807545,3301.2,3301.1,28.58514655]
[1762510329257,6.84807545,3301.2,3301.1,29.81514655]
[1762510330016,7.31107545,3301.2,3301.1,29.81514655]
[1762510330737,6.84807545,3301.2,3301.1,31.04514655]
[1762510331307,6.52657545,3301.2,3301.1,31.51384655]
[1762510331510,6.13272347,3301.2,3301.1,31.51384655]
[1762510332444,6.88240878,3301.2,3301.1,32.27514655]
[1762510332665,6.56240878,3301.2,3301.1,32.74384655]
[1762510332815,6.56240878,3301.2,3301.1,32.27514655]
[1762510333011,6.88240878,3301.2,3301.1,32.27514655]
[1762510333359,6.56240878,3301.2,3301.1,33.38404655]
[1762510333652,6.56240878,3301.2,3301.1,34.61404655]
[1762510334214,6.56240878,3301.2,3301.1,34.16334655]
[1762510334544,6.89080878,3301.2,3301.1,33.50514655]
[1762510335051,15.89080878,3301.2,3301.1,33.50514655]
[1762510335346,15.89080878,3301.2,3301.1,34.73514655]
[1762510335751,15.89000878,3301.2,3301.1,34.73514655]
[1762510335961,16.78159765,3301.2,3301.1,34.73514655]
[1762510336119,16.78159765,3301.2,3301.1,34.26154231]
[1762510336120,16.37609365,3301.2,3301.1,34.26154231]
[1762510336522,16.30619473,3301.2,3301.1,34.26154231]
[1762510336757,16.30619473,3301.2,3301.1,35.49154231]
[1762510337020,7.30619473,3301.2,3301.1,35.49154231]
[1762510338243,7.30619473,3301.2,3301.1,36.72154231]
[1762510339215,6.37513884,3301.2,3301.1,36.72154231]
[1762510339517,6.11667198,3301.2,3301.1,36.72154231]
[1762510339717,6.52217598,3301.2,3301.1,37.95154231]
[1762510339953,6.85187598,3301.2,3301.1,37.95154231]
[1762510340177,7.28736485,3301.2,3301.1,37.95154231]
[1762510340387,6.95766485,3301.2,3301.1,38.91624231]
[1762510340588,6.13195769,3301.2,3301.1,39.10454231]
[1762510340744,15.13195769,3301.2,3301.1,39.10454231]
[1762510341267,17.0874872,3301.2,3301.1,39.18154231]
[1762510341461,16.73589818,3301.2,3301.1,39.18154231]
[1762510341658,15.95139818,3301.2,3301.1,39.67054231]
[1762510341863,12.10275619,3301.2,3301.1,40.33454231]
[1762510342475,12.10275619,3301.2,3301.1,41.56454231]
[1762510343072,11.62731905,3301.2,3301.1,41.56454231]
[1762510343872,11.62731905,3301.2,3301.1,42.79454231]
[1762510344090,10.31840705,3301.2,3301.1,45.82378969]
[1762510344753,10.667216,3301.2,3301.1,45.82378969]
[1762510344951,9.002,3301.2,3301.1,45.82378969]
[1762510345262,10.667216,3301.2,3301.1,45.82378969]
[1762510345460,10.667216,3301.2,3301.1,47.05378969]
[1762510346163,1.667216,3301.2,3301.1,47.05378969]
[1762510346768,1.667216,3301.2,3301.1,48.28378969]
[1762510347589,1.261712,3301.2,3301.1,48.28378969]
[1762510348091,1.261712,3301.2,3301.1,49.51378969]
[1762510348657,0.002,3301.6,3301.1,49.51378969]
[1762510348995,0.002,3301.6,3301.5,0.489]
[1762510349356,0.002,3301.6,3301.5,2.1947]
[1762510350772,0.002,3301.6,3301.5,3.4247]
[1762510351590,1.667216,3301.6,3301.5,2.949]
[1762510351790,2.48665649,3301.6,3301.5,2.949]
[1762510352091,5.13000212,3301.6,3301.5,2.46]
[1762510352294,5.13000212,3301.6,3301.5,3.69]
[1762510352497,6.35276645,3301.6,3301.5,3.69]
[1762510352798,7.24265532,3301.6,3301.5,3.69]
[1762510353702,7.24265532,3301.6,3301.5,4.92]
[1762510355206,7.24265532,3301.6,3301.5,6.15]
[1762510355619,14.2426742,3301.6,3301.5,4.04929466]
[1762510355816,4.7489175,3301.2,3301.1,3.07766354]
[1762510356018,5.91953269,3301.2,3301.1,3.07766354]
[1762510356182,6.37683269,3301.2,3301.1,3.07766354]
[1762510357887,6.37683269,3301.2,3301.1,4.30766354]
[1762510358716,15.32683269,3301.2,3301.1,4.30766354]
[1762510359124,15.37683269,3301.2,3301.1,4.30766354]
[1762510359291,21.86683269,3301.2,3301.1,5.53766354]
[1762510359622,22.77799303,3301.2,3301.1,5.53766354]
[1762510360798,22.77799303,3301.2,3301.1,6.76766354]
[1762510361324,22.42523734,3301.2,3301.1,6.76766354]
[1762510362192,13.42523734,3301.2,3301.1,7.99766354]
[1762510362392,13.90074178,3301.2,3301.1,7.99766354]
[1762510363010,13.42523734,3301.2,3301.1,7.99766354]
[1762510363212,12.17556271,3301.2,3301.1,7.99766354]
[1762510363419,11.74007384,3301.2,3301.1,7.99766354]
[1762510363748,12.01457384,3301.2,3301.1,9.22766354]
[1762510363950,12.14557784,3301.2,3301.1,9.22766354]
[1762510364517,12.42217784,3301.2,3301.1,9.22766354]
[1762510364918,12.42217784,3301.2,3301.1,10.45766354]
[1762510365133,5.65557784,3301.2,3301.1,10.45766354]
[1762510366027,15.1310333,3301.2,3301.1,10.45766354]
[1762510366365,15.4076333,3301.2,3301.1,11.68766354]
[1762510366742,15.1310333,3301.2,3301.1,12.15786354]
[1762510367053,11.6463278,3301.2,3301.1,12.84876354]
[1762510367220,10.7921198,3301.2,3301.1,12.84876354]
[1762510367621,11.57637634,3301.2,3301.1,14.07876354]
[1762510367948,11.17087234,3301.2,3301.1,14.07876354]
[1762510368156,10.259712,3301.2,3301.1,14.07876354]
[1762510368337,10.665216,3301.2,3301.1,14.07876354]
[1762510368749,10.665216,3301.2,3301.1,12.91766354]
[1762510369126,10.665216,3301.2,3301.1,14.61786354]
[1762510369451,10.665216,3301.2,3301.1,15.30876354]
[1762510369953,10.259712,3301.2,3301.1,16.83963989]
[1762510370181,10.665216,3301.2,3301.1,16.83963989]
[1762510370583,10.665216,3301.2,3301.1,18.06963989]
[1762510371283,1.259712,3301.2,3301.1,18.06963989]
[1762510371470,1.665216,3301.2,3301.1,16.53876354]
[1762510371675,1.665216,3301.2,3301.1,16.53976354]
[1762510371876,1.665216,3301.2,3301.1,17.07886354]
[1762510372394,2.04758663,3301.2,3301.1,17.07886354]
[1762510372889,1.665216,3301.2,3301.1,19.52747989]
[1762510373487,1.665216,3301.2,3301.1,18.99976354]
[1762510373784,2.04758663,3301.2,3301.1,18.99976354]
[1762510373984,1.665216,3301.2,3301.1,18.99976354]
[1762510374682,1.665216,3301.2,3301.1,20.22976354]
[1762510374888,1.259712,3301.2,3301.1,20.22976354]
[1762510375183,1.665216,3301.2,3301.1,20.22976354]
[1762510375586,1.665216,3301.2,3301.1,19.73146354]
[1762510375952,1.665216,3301.2,3301.1,20.22976354]
[1762510376192,1.665216,3301.2,3301.1,21.45976354]
[1762510376485,10.665216,3301.2,3301.1,21.45976354]
[1762510377287,11.04758663,3301.2,3301.1,21.45976354]
[1762510377454,11.04758663,3301.2,3301.1,22.68976354]
[1762510377851,10.665216,3301.2,3301.1,22.68976354]
[1762510378058,11.04758663,3301.2,3301.1,22.68976354]
[1762510378685,11.95837629,3301.2,3301.1,22.68976354]
[1762510378894,11.95837629,3301.2,3301.1,26.18873989]
[1762510378895,10.259712,3301.2,3301.1,26.18873989]
[1762510379255,10.665216,3301.2,3301.1,26.18873989]
[1762510379692,10.259712,3301.2,3301.1,26.18873989]
[1762510380487,10.259712,3301.2,3301.1,27.41873989]
[1762510380882,10.665216,3301.2,3301.1,25.14976354]
[1762510381490,10.664416,3301.2,3301.1,25.14976354]
[1762510381785,10.664416,3301.2,3301.1,26.37976354]
[1762510381786,1.258912,3301.2,3301.1,26.37976354]
[1762510383089,1.258912,3301.2,3301.1,27.60976354]
[1762510383296,0.002,3301.6,3301.1,27.60976354]
[1762510383592,0.002,3301.6,3301.5,0.4702]
[1762510383907,0.002,3301.6,3301.5,0.9685]
[1762510384297,0.002,3301.6,3301.5,2.1985]
[1762510386037,0.002,3301.6,3301.5,3.4285]
[1762510386907,0.002,3301.9,3301.5,3.4285]
[1762510387247,0.002,3301.9,3301.8,0.4702]
[1762510387524,0.002,3302.0,3301.8,0.4702]
[1762510387723,0.002,3302.0,3301.9,0.9685]
[1762510388980,0.002,3302.0,3301.9,2.1985]
[1762510390527,0.002,3302.3,3301.9,3.4285]
[1762510390818,0.002,3302.3,3302.2,0.6275]
[1762510391424,0.002,3302.3,3302.2,1.1258]
[1762510391779,0.002,3302.3,3302.2,2.3558]
[1762510391997,0.002,3302.7,3302.2,2.3558]
[1762510392232,0.002,3302.7,3302.6,0.4702]
[1762510392384,0.005,3302.9,3302.6,0.4702]
[1762510392587,0.005,3302.9,3302.8,0.4702]